Cogmind - Beta 13 @@@ ROGUE MODE // 2024.04.09 @ 18:19:51 Player: RD-BKR Result: Destroyed self with Subdweller Shrapnel Launcher Performance ------------- Evolutions (0) 0 Regions Visited (2) 400 Robots Destroyed (24) 120 Value Destroyed (594) 594 Prototype IDs (0) 0 Alien Tech Used (0) 0 Bonus (0) 0 TOTAL SCORE: 1114 Bonus ------- None Cogmind --------- Core Integrity 0/250 Matter 210/300 Energy 200/200 System Corruption 0% Temperature Cool (0) Movement Rolling (120) Ox1 Location -10/Subcaves Parts ------- > --- POWER (1) -------- Subdweller Power Source > --- PROPULSION (2) --- Subdweller Monowheel Subdweller Monowheel > --- UTILITY (2) ------ High-capacity Storage Unit Signal Interpreter > --- WEAPON (2) ------- Subdweller Shrapnel Launcher > --- INVENTORY (20) --- Ion Engine Ion Engine Ion Engine Light Ion Engine Light Ion Engine Light Treads Aluminum Leg Aluminum Leg Wheel Wheel Medium Battery (150) ECM Suite Light Armor Plating Scrap Shield Fragment (42) Scrap Shield Fragment (7) Peak State ------------ > --- POWER ------------ Subdweller Power Source > --- PROPULSION ------- Subdweller Monowheel Subdweller Monowheel > --- UTILITY ---------- High-capacity Storage Unit Signal Interpreter > --- WEAPON ----------- Subdweller Shrapnel Launcher > --- INVENTORY -------- Ion Engine Ion Engine Ion Engine Light Ion Engine Light Ion Engine Light Treads Aluminum Leg Aluminum Leg Wheel Wheel Medium Battery ECM Suite Light Armor Plating Scrap Shield Fragment Scrap Shield Fragment [Rating: 11] Favorites ----------- Power Ion Engine Engine Ion Engine Propulsion Light Treads Treads Light Treads Leg Aluminum Leg Wheel Wheel Utility High-capacity Storage Unit Storage High-capacity Storage Unit Processor Signal Interpreter Weapon Light Assault Rifle Energy Gun EM Pulse Gun Ballistic Gun Light Assault Rifle Ballistic Cannon Light Cannon Launcher Subdweller Shrapnel Launcher Build | -11 -10 -10 ------- Run | Yrd Mat Sub Slots Evolved . | . . . Power . | . . . Propulsion . | . . . Utility . | . . . Weapon . | . . . Parts Attached 18 | . 11 7 Power 3 | . 2 1 Engine 3 | . 2 1 Core . | . . . Reactor . | . . . Propulsion 7 | . 4 3 Treads 2 | . 2 . Leg . | . . . Wheel 5 | . 2 3 Hover . | . . . Flight . | . . . Utility 2 | . 2 . Device . | . . . Storage 1 | . 1 . Processor 1 | . 1 . Hackware . | . . . Protection . | . . . Artifact . | . . . Weapon 6 | . 3 3 Energy Gun 2 | . . 2 Energy Cannon . | . . . Ballistic Gun 2 | . 2 . Ballistic Cannon 1 | . 1 . Launcher 1 | . . 1 Special Weapon . | . . . Impact Weapon . | . . . Slashing Weapon . | . . . Piercing Weapon . | . . . Special Melee Weapon . | . . . Unidentified Prototypes . | . . . Parts Lost 6 | . 2 4 Power . | . . . Propulsion 1 | . 1 . Utility . | . . . Weapon 5 | . 1 4 Highest Loss Streak 4 | . 1 4 To Critical Strikes . | . . . Average Slot Usage (%) 96 | . 98 89 Engine 14 | . 14 14 Treads 19 | . 22 . Wheel 7 | . 4 28 Storage 14 | . 14 14 Processor 12 | . 12 14 Ballistic Gun 16 | . 18 3 Ballistic Cannon 8 | . 8 3 Launcher 1 | . . 9 Naked Turns . | . . . Heaviest Build 53 | 13 52 53 Greatest Support 40 | 20 40 40 Greatest Overweight (x) 2 | . 2 2 Average Overweight (x) . | . . 1 Largest Inventory Capacity 20 | 8 20 20 Average Capacity 18 | 8 18 20 Most Carried 15 | 6 13 15 Average Carried 11 | 6 10 13 Final Capacity 20 | 8 20 20 Final Carried 15 | 6 13 15 Class Distribution -------------------- 100% | Mutant Dominant Class ---------------- Mutant | -10/Materials Mutant | -10/Subcaves Resources | -11 -10 -10 ----------- Run | Yrd Mat Sub Matter Collected 550 | 200 275 75 Remotely . | . . . Salvage Created 636 | . 565 71 Parts 49 | . 43 6 Haulers Intercepted . | . . . Recyclers Shooed . | . . . Parts Field Recycled . | . . . Retrieved Matter . | . . . Parts Self-Destructed . | . . . Prevented . | . . . Kills | -11 -10 -10 ------- Run | Yrd Mat Sub Combat Hostiles Destroyed 23 | . 21 2 Guns 14 | . 14 . Cannons 7 | . 7 . AOE 2 | . . 2 Classes Destroyed 5 | . 3 2 Operator 1 | . 1 . Swarmer 9 | . 9 . Grunt 12 | . 12 . Artisan 1 | . . 1 Subdweller 2 | . . 2 Best Kill Streak 3 | . 3 1 Combat Bots Only 3 | . 3 1 Max Kills in Single Turn 1 | . 1 1 Gunslinging . | . . . Exploded 1 | . . 1 Melee . | . . . Uniques/NPCs Destroyed . | . . . Combat | -11 -10 -10 -------- Run | Yrd Mat Sub Hostile Shots Fired 107 | . 101 6 Missed 17 | . 16 1 Damage Taken 1097 | . 855 242 Core 275 | . 202 73 Absorbed by Shields . | . . . Core Remaining (%) 100 | 100 . . Volleys Fired 74 | . 65 9 Largest 2 | . 2 2 Hottest 80 | . 60 80 Shots Fired 143 | . 129 14 Gun 108 | . 100 8 Cannon 31 | . 29 2 Launcher 4 | . . 4 Special . | . . . Kinetic 121 | . 113 8 Thermal . | . . . Explosive . | . . . Electromagnetic 22 | . 16 6 Robot Hit Streak 11 | . 11 4 Robot Miss Streak 4 | . 4 2 Penetration Max . | . . . Secondary Targets 1 | . 1 . Max Gunslinging Chain 1 | . 1 . Shots Hit Robots 89 | . 81 8 Core Hits 41 | . 36 5 Critical Kills . | . . . Critical Parts Destroyed 1 | . 1 . Critical Strikes 1 | . 1 . Destroy 1 | . 1 . Melee Attacks . | . . . Impact . | . . . Slashing . | . . . Piercing . | . . . Sneak Attacks . | . . . Combat Hostiles . | . . . Follow-up Attacks . | . . . Damage Inflicted 1181 | . 877 304 Guns 589 | . 549 40 Cannons 324 | . 324 . Explosions 264 | . . 264 Melee . | . . . Ramming 4 | . 4 . Kinetic 1000 | . 781 219 Thermal 54 | . . 54 Explosive . | . . . Electromagnetic 123 | . 92 31 Impact . | . . . Slashing . | . . . Piercing . | . . . Highest Corruption . | . . . Average Corruption . | . . . Corruption Purged . | . . . Corruption Blocked . | . . . Overload Shots . | . . . Overflow Damage 57 | . . 57 Projectiles . | . . . Explosions 57 | . . 57 Melee . | . . . Knockbacks 4 | . 4 . Impact . | . . . Kinetic 4 | . 4 . Secondary . | . . . Self-Inflicted Damage 88 | . . 88 Shots 2 | . . 2 Rammed 2 | . 2 . Targets Rammed 2 | . 2 . Kicked . | . . . Crushed . | . . . Highest Temperature 84 | . 84 . Average Temperature 25 | . 25 . Received Heat Transfer 348 | . 342 6 Siege Activations . | . . . Robots Corrupted . | . . . Combat Hostiles . | . . . Parts Fried . | . . . Impact Corruptions . | . . . Robots Melted . | . . . Combat Hostiles . | . . . Parts Melted . | . . . Heat Transferred . | . . . Parts Sabotaged . | . . . Parts Stolen . | . . . Parts Stripped . | . . . Power Chain Reactions 1 | . . 1 Alert | -11 -10 -10 ------- Run | Yrd Mat Sub Peak Influence 189 | . 189 . Initial . | . . . Average 114 | . 114 . Maximum Alert Level . | . . . Low Security (%) 100 | 100 100 . Level 1 . | . . . Level 2 . | . . . Level 3 . | . . . Level 4 . | . . . Level 5 . | . . . High Security . | . . . Max Security . | . . . Squads Dispatched 5 | . 5 . Investigation 3 | . 3 . Extermination . | . . . Reinforcement 2 | . 2 . Assault . | . . . Garrison . | . . . Intercept . | . . . Searches Triggered . | . . . Construction Impeded . | . . . Haulers Reinforced . | . . . Active Scanning Responses . | . . . Cargo Convoy Interrupts . | . . . Stealth | -11 -10 -10 --------- Run | Yrd Mat Sub Distress Signals 5 | . 5 . Communications Jammed . | . . . Distress Signals . | . . . Times Spotted 40 | . 36 4 Peak Tracking Total 5 | . 5 2 Tactical Retreats 4 | . 4 . Traps | -11 -10 -10 ------- Run | Yrd Mat Sub Traps Triggered 1 | . 1 . Indirectly . | . . . Trap Hack Attempts . | . . . Triggered . | . . . Disarmed . | . . . Reprogrammed . | . . . Reused . | . . . Traps Extracted . | . . . Installed . | . . . Triggered . | . . . Machines | -11 -10 -10 ---------- Run | Yrd Mat Sub Machines Disabled . | . . . Max in Single Turn . | . . . Machines Repaired . | . . . Machines Dismantled . | . . . Machines Sabotaged . | . . . Overloaded Fab Kills . | . . . Hacking | -11 -10 -10 --------- Run | Yrd Mat Sub Machines Accessed 6 | . 6 . Terminals 4 | . 4 . Fabricators . | . . . Repair Stations 1 | . 1 . Recycling Units 1 | . 1 . Scanalyzers . | . . . Garrison Access . | . . . Total Hacks 13 | . 13 . Successful 4 | . 4 . Failed 9 | . 9 . Catastrophic 2 | . 2 . Database Lockouts . | . . . Manual 6 | . 6 . Terminals 8 | . 8 . Fabricators . | . . . Repair Stations 1 | . 1 . Recycling Units 4 | . 4 . Scanalyzers . | . . . Garrison Access . | . . . Terminal Hacks 2 | . 2 . Terminal Index 1 | . 1 . Locate Traps 1 | . 1 . Fabricator Hacks . | . . . Repair Station Hacks . | . . . Recycling Unit Hacks 1 | . 1 . Report Inventory 1 | . 1 . Scanalyzer . | . . . Garrison Access Hacks . | . . . Unauthorized Hacks 1 | . 1 . Terminals 1 | . 1 . Botnet 1 | . 1 . Fabricators . | . . . Repair Stations . | . . . Recycling Units . | . . . Scanalyzers . | . . . Garrison Access . | . . . Data Cores Recovered . | . . . Used . | . . . Hacking Detections 6 | . 6 . Full Trace Events 2 | . 2 . Feedback Events . | . . . Feedback Blocked . | . . . Robot Schematics Acquired . | . . . Robots Built . | . . . Authchips . | . . . Time . | . . . Total Robot Build Rating . | . . . Part Schematics Acquired . | . . . Parts Built . | . . . Authchips . | . . . Time . | . . . Total Part Build Rating . | . . . Parts Repaired . | . . . Time . | . . . Parts Recycled . | . . . Recycled Matter . | . . . Retrieved Matter . | . . . Retrieved Components . | . . . Parts Scanalyzed . | . . . Part Schematics Acquired . | . . . Parts Damaged . | . . . Bothacking | -11 -10 -10 ------------ Run | Yrd Mat Sub Used RIF Installer . | . . . Robots Hacked . | . . . Non-combat . | . . . Combat . | . . . Robot Hacks Applied . | . . . Relay Couplers Released . | . . . Fabnet Peak Effective % . | . . . Robots Rewired . | . . . Allies Hacked . | . . . Hacks Repelled . | . . . Allies | -11 -10 -10 -------- Run | Yrd Mat Sub Total Allies . | . . . Largest Group . | . . . Highest-Rated Group . | . . . Highest-Rated Ally . | . . . Total Orders . | . . . Ally Attacks . | . . . Total Damage . | . . . Kills . | . . . Allies Corrupted . | . . . Allies Melted . | . . . Intel | -11 -10 -10 ------- Run | Yrd Mat Sub Robot Analysis Total . | . . . Derelict Logs Recovered 1 | . . 1 Drone Launches . | . . . Drone Recoveries . | . . . Exploration | -11 -10 -10 ------------- Run | Yrd Mat Sub Turns Passed 2399 | 5 2078 316 Spaces Moved 865 | 5 613 247 Core . | . . . Treads 555 | . 555 . Legs 25 | 5 20 . Wheels 285 | . 38 247 Hover . | . . . Flight . | . . . Fastest Speed 107 | 120 110 107 Average Speed 184 | 120 215 108 Slowest Speed 240 | 120 240 120 Overloaded Moves . | . . . Propulsion Burnouts . | . . . Robots Hopped . | . . . Cave-ins Triggered . | . . . Exploration Rate (%) 36 | 2 81 25 Regions Visited 2 Branch Regions 1 Pre-discovered Areas . | . . . Known Exits Taken 1 | . 1 . Unknown Exits Taken 1 | 1 . . Scrap Searched 1 | . . 1 Spaces Dug . | . . . Terrain Destroyed 46 | . . 46 Melee . | . . . Projectile . | . . . AOE 46 | . . 46 Terrain Rammed . | . . . Walls Destroyed . | . . . Machines Disabled . | . . . Actions | -11 -10 -10 --------- Run | Yrd Mat Sub Total 1536 | 4 1251 281 Wait 564 | . 549 15 Move 863 | 4 612 247 Hop . | . . . Pick Up 11 | . 9 2 Fast Attach 4 | . 2 2 Attach 4 | . 2 2 Detach . | . . . Swap 10 | . 7 3 Drop 4 | . 3 1 Fire 74 | . 65 9 Melee . | . . . Ram . | . . . Kick . | . . . Crush 2 | . 2 . Escape Stasis . | . . . Rewire . | . . . Trap . | . . . Miscellaneous . | . . . Route ------- -11/Scrapyard -10/Materials (discovered 5 exits: *Mat x3 / [*Min] / *Sub) -10/Subcaves (discovered 1 exit: *Mat) History --------- Turn | Location | Event 1 | -11/Scrapyard | Discovered new exit (range 2) 6 | -11/Scrapyard | Entered Materials 301 | -10/Materials | Build established: Mutant 782 | -10/Materials | Core integrity fell below 50% 902 | -10/Materials | Discovered new exit (range 7) 1148 | -10/Materials | Discovered new exit (range 6) 1182 | -10/Materials | Identified exit to Materials 1299 | -10/Materials | Discovered exit to Materials (range 5) 1526 | -10/Materials | Discovered exit to Materials (range 16) 1759 | -10/Materials | Core integrity fell below 20% 2065 | -10/Materials | Discovered new exit (range 6) 2083 | -10/Materials | Identified exit to Subcaves 2084 | -10/Materials | Entered Subcaves 2152 | -10/Subcaves | Ambushed by Subdwellers from Twisted Machinery 2213 | -10/Subcaves | Lost 4 parts (4w) 2301 | -10/Subcaves | Learned 4 Materials zone layouts 2303 | -10/Subcaves | Discovered new exit (range 7) 2313 | -10/Subcaves | Identified exit to Materials 2388 | -10/Subcaves | Disturbed a concealed Subdweller 2400 | -10/Subcaves | Destroyed self with Subdweller Shrapnel Launcher Last Messages --------------- 02226_ OT-2TK(u) destroyed. 02231_ Subatomizers dissect the Disposable Heat Sink, destroying it. 02243_ Subatomizers dissect the Wheel. 02265_ Acquired 14 matter. 02267_ Acquired 6 matter. 02287_ Dropped Ion Engine. 02287_ Acquired Sub. Power Source. 02301_ Acquired derelict log, extracted data. Data stored: Materials zone layouts (x4). 02303_ EXIT=FOUND 02313_ EXIT=IDENTIFIED: MATERIALS 02375_ Searching scrap... 02375_ Found Sub. Monowheel. 02375_ Found Sub. Power Source. 02375_ Found 16 Matter. 02376_ Acquired 16 matter. 02388_ 9C-18V(R) angrily emerges from the Twisted Machinery. 02397_ 9C-18V(R) destroyed. Map ----- +----------------------------------------------------+ | ?????????????????????????????????????????????????? | | ?????????????????????????????????????????????????? | | ?????????????????????????????????????????????????? | | ?????????????????????????????????????????????????? | | ?????????????????????????????????????????????????? | | ?????????????????????????????????????????????????? | | ?????????????????????????????????????????????????? | | ?????????????????????????????????????????????????? | | ?????????????????????????????????????????????????? | | ?????????????????????????????????????????????????? | | ?????????????????????????????????????????????????? | | ?????????????????????????????????????????????????? | | ?????????????????????????????????????????????????? | | ?????????????????????#######?###?????????????????? | | ?????????????????????$$ $ <<< < ##??????????????? | | ?????????????????????? $ <<<<#??????????????? | | ????????????????????? $ < #??????????????? | | ??????????????????????R $ && ##?????????????? | | ??????????????????????<$ $